{"text_format":"1","workbook":"xlsx","n_sheets":5,"sheets":["Startgegevens","Nieuwe regeling","Overgangsregeling 1","Overgangsregeling 2","Salaristabellen"],"not_rendered":{"charts":3,"images":1,"macros":1,"external_links":0,"defined_names":1,"comments":0,"pivot_tables":0},"unopened":[],"bounds":{"document_bytes":16777216,"sheet_cells":100000,"rows_first":2000,"rows_last":500,"rows_between":2000,"halvings":0,"cell_chars":16384,"cell_head_chars":4096},"cells_cut":0,"cells_raw":0,"read":"whole","date_system":"1900"}

{"sheet":"Startgegevens","index":0,"n_rows":25,"n_cols":19,"rows_kept":25,"cut":false,"hidden":false,"merged":[]}
["Startgegevens"]
[]
["Werktijdsfactor",0,{"$f":"IF(B3=\"\",\"Gegevens ontbreken\",\"\")","v":""}]
["Schaal","LB"]
["Trede",12,{"$f":"IF(B5=\"\",\"Gegevens ontbreken\",\"\")","v":""}]
["Brutoloon",{"$f":"VLOOKUP(B4,Salaristabellen!A3:R41,B5+2,FALSE)","v":5277},"Loonpeil 1 juli 2025"]
["Bruteringstoelage",0,{"$f":"IF(B7=\"\",\"Gegevens ontbreken\",\"\")","v":""}]
["Percentage inhouding",{"$f":"VLOOKUP(B4,Salaristabellen!$A$3:$B$40,2,FALSE)","v":"50"}]
[null,null,null,null,null,null,null,null,null,null,null,null,null,null,null,null,{"$f":"DATE(S17,R17,Q17)","v":"1968-05-22"}]
["1. a) Bent u geboren voor 1-10-1958?"]
[]
[]
["1. b) Genoot u per 30-9-2014 bapo?"]
[]
[]
["2. Bent u geboren voor ",{"$f":"Q9","v":"1968-05-22"}]
[null,null,null,null,null,null,null,null,null,null,null,null,null,null,null,null,{"$f":"DAY(TODAY())","v":22},{"$f":"MONTH(TODAY())","v":5},{"$f":"YEAR(TODAY())-57","v":1968}]
[]
["3. a) Bent u geboren voor 1-10-1962?"]
[]
[]
["3. b) Genoot u per 30-9-2014 bapo?"]
[]
[]
[{"$f":"\"U heeft recht op \"&40*B3&\" uur duurzame inzetbaarheid.\"","v":"U heeft recht op 0 uur duurzame inzetbaarheid."}]

{"sheet":"Nieuwe regeling","index":1,"n_rows":32,"n_cols":14,"rows_kept":32,"cut":false,"hidden":true,"merged":[[30,10,31,12],[21,0,21,10],[13,0,13,1],[14,0,14,1],[15,0,15,1],[25,1,25,2],[26,1,26,2],[27,1,27,2],[30,1,30,2],[30,7,30,9]]}
["Nieuwe regeling"]
[]
[]
[]
["Nieuwe regeling"]
["Basisbudget",null,{"$f":"ROUND(40*Startgegevens!$B$3,0)","v":0},"uur"]
["Bijzonder budget",null,{"$f":"ROUND(130*Startgegevens!$B$3,0)","v":0},"uur"]
["Totaal budget",null,{"$f":"SUM(C6:C7)","v":0},"uur"]
["Opgebouwd budget spaarverlof",null,0]
["Gewenst aantal uren op te nemen spaarverlof",null,null,{"$f":"\"tussen 0 en \"&MIN(C9,340*Startgegevens!$B$3)","v":"tussen 0 en 0"}]
["Gewenst aantal uren regulier verlof",null,55,{"$f":"\"tussen 0 en \"&C8","v":"tussen 0 en 0"},null,null,null,null,null,null,null,null,null,{"$f":"\"U heeft jaarlijks recht op \"&C8&\" uur aan verlof. Dit is opgebouwd uit een basisbudget van \"&C6&\" uur en een bijzonder budget van \"&C7","v":"U heeft jaarlijks recht op 0 uur aan verlof. Dit is opgebouwd uit een basisbudget van 0 uur en een bijzonder budget van 0"}]
[null,null,null,null,null,null,null,null,null,null,null,null,null," uur. Wanneer u een deel van dit budget in wilt zetten voor verlof, betaald u over het bijzonder budget een eigen bijdrage. Bij opname van verlof moet eerst het bijzonder budget worden ingezet. "]
["Resultaat",null,null,null,null,null,null,null,null,null,null,null,null,{"$f":"\"Vult u in blauwe vak een gewenst aantal uren verlof in. Dit moet liggen tussen de 0 en de \"&C8&\" uur.\"","v":"Vult u in blauwe vak een gewenst aantal uren verlof in. Dit moet liggen tussen de 0 en de 0 uur."}]
["Aantal uur verlof zonder eigen bijdrage",null,{"$f":"ROUND(IF(C11=\"\",\"\",IF(C11>=C7,C11-C7,0))+IF(C11>0,C10/C8*C6,0),0)","v":{"$error":"#DIV/0!"}},"uur"]
["Aantal uur mét eigen bijdrage (bijzonder budget)",null,{"$f":"ROUND(IF(C11=\"\",\"\",IF(C11>=C7,C7,C11)+IF(C10>0,C10/C8*C7,0)),0)","v":0},"uur"]
["Beschikbaar voor duurzame inzetbaarheid",null,{"$f":"IF(C11=\"\",\"\",C6-C14+C7-C15+C10)","v":{"$error":"#DIV/0!"}},"uur"]
[]
["Eigen bijdrage per maand",{"$f":"IF(C11=\"\",\"Vul gewenst aantal uren verlof in\",((C15/1659)*(Startgegevens!$B$6+Startgegevens!$B$7)))*Startgegevens!B8/100","v":0},{"$f":"Startgegevens!C6","v":"Loonpeil 1 juli 2025"}]
[]
[]
["Toelichting"]
[{"$f":"N11&N12&N13","v":"U heeft jaarlijks recht op 0 uur aan verlof. Dit is opgebouwd uit een basisbudget van 0 uur en een bijzonder budget van 0 uur. Wanneer u een deel van dit budget in wilt zetten voor verlof, betaald u over het bijzonder budget een eigen bijdrage. Bij opname van verlof moet eerst het bijzonder budget worden ingezet. Vult u in blauwe vak een gewenst aantal uren verlof in. Dit moet liggen tussen de 0 en de 0 uur."}]
[]
["Ondertekening bevoegd gezag en aanvrager"]
[]
["Naam medewerker"]
["Geboortedatum"]
["Ingangsdatum voor salarisadministratie"]
[]
["Ondertekening medewerker",null,null,null,"Ondetekening bevoegd gezag"]
["Datum",null,null,null,"Datum"]
["Handtekening",null,null,null,"Handtekening"]

{"sheet":"Overgangsregeling 1","index":2,"n_rows":30,"n_cols":14,"rows_kept":30,"cut":false,"hidden":true,"merged":[[11,0,11,1],[12,0,12,1],[13,0,13,1],[19,0,19,10],[28,10,29,12],[23,1,23,2],[24,1,24,2],[25,1,25,2],[28,1,28,2],[28,7,28,9]]}
["Overgangsregeling 1"]
[]
[]
[]
["Nieuwe regeling"]
["Basisbudget",null,{"$f":"ROUND(40*Startgegevens!$B$3,0)","v":0},"uur"]
["Bijzonder budget",null,{"$f":"ROUND(130*Startgegevens!$B$3,0)","v":0},"uur"]
["Totaal budget",null,{"$f":"SUM(C6:C7)","v":0},"uur"]
["Gewenst aantal uren verlof",null,170,{"$f":"\"tussen 0 en \"&C8","v":"tussen 0 en 0"},null,null,null,null,null,null,null,null,null,{"$f":"\"U heeft jaarlijks recht op \"&C8&\" uur aan verlof. Dit is opgebouwd uit een basisbudget van \"&C6&\" uur en een bijzonder budget van \"&C7","v":"U heeft jaarlijks recht op 0 uur aan verlof. Dit is opgebouwd uit een basisbudget van 0 uur en een bijzonder budget van 0"}]
[null,null,null,null,null,null,null,null,null,null,null,null,null," uur. Wanneer u een deel van dit budget in wilt zetten voor verlof, betaald u over een vaste verhouding van deze uren een eigen bijdrage. "]
["Resultaat",null,null,null,null,null,null,null,null,null,null,null,null,{"$f":"\"Vult u in blauwe vak een gewenst aantal uren verlof in. Dit moet liggen tussen de 0 en de \"&C8&\" uur. \"","v":"Vult u in blauwe vak een gewenst aantal uren verlof in. Dit moet liggen tussen de 0 en de 0 uur. "}]
["Aantal uur verlof zonder eigen bijdrage",null,{"$f":"IF(C9=\"\",\"\",C9*(40/170))","v":40},"uur",null,null,null,null,null,null,null,null,null,{"$f":"\"Een hoger aantal uur verlof leidt tot een hogere eigen bijdrage en minder resterende uren voor duurzame inzetbaarheid. \"","v":"Een hoger aantal uur verlof leidt tot een hogere eigen bijdrage en minder resterende uren voor duurzame inzetbaarheid. "}]
["Aantal uur mét eigen bijdrage (bijzonder budget)",null,{"$f":"IF(C9=\"\",\"\",C9*(130/170))","v":130},"uur"]
["Beschikbaar voor duurzame inzetbaarheid",null,{"$f":"IF(C9=\"\",\"\",C6-C12+C7-C13)","v":-170},"uur"]
[]
["Eigen bijdrage per maand",{"$f":"IF(C9=\"\",\"Vul gewenst aantal uren verlof in\",(C13/1659)*Startgegevens!$B$3*(Startgegevens!$B$6+Startgegevens!$B$7))","v":0},{"$f":"Startgegevens!C6","v":"Loonpeil 1 juli 2025"}]
[]
[]
["Toelichting"]
[{"$f":"N9&N10&N11&N12","v":"U heeft jaarlijks recht op 0 uur aan verlof. Dit is opgebouwd uit een basisbudget van 0 uur en een bijzonder budget van 0 uur. Wanneer u een deel van dit budget in wilt zetten voor verlof, betaald u over een vaste verhouding van deze uren een eigen bijdrage. Vult u in blauwe vak een gewenst aantal uren verlof in. Dit moet liggen tussen de 0 en de 0 uur. Een hoger aantal uur verlof leidt tot een hogere eigen bijdrage en minder resterende uren voor duurzame inzetbaarheid. "}]
[]
["Ondertekening bevoegd gezag en aanvrager"]
[]
["Naam medewerker"]
["Geboortedatum"]
["Ingangsdatum voor salarisadministratie"]
[]
["Ondertekening medewerker",null,null,null,"Ondetekening bevoegd gezag"]
["Datum",null,null,null,"Datum"]
["Handtekening",null,null,null,"Handtekening"]

{"sheet":"Overgangsregeling 2","index":3,"n_rows":32,"n_cols":14,"rows_kept":32,"cut":false,"hidden":true,"merged":[[21,0,21,11],[30,10,31,12],[25,1,25,2],[26,1,26,2],[27,1,27,2],[30,1,30,2],[30,7,30,9]]}
["Overgangsregeling 2"]
[]
[]
[]
["Overgangsregeling 2"]
["Basisbudget",null,{"$f":"ROUND(40*Startgegevens!$B$3,0)","v":0},"uur",null,null,null,null,null,null,null,null,null,{"$f":"\"U heeft jaarlijks recht op \"&C9&\" uur aan duurzame inzetbaarheid. Dit is opgebouwd uit een basisbudget van \"&C6&\" uur, een bijzonder budget van \"&C7&\" uur en een overgangsbudget van \"&C8&\" uur. \"","v":"U heeft jaarlijks recht op 0 uur aan duurzame inzetbaarheid. Dit is opgebouwd uit een basisbudget van 0 uur, een bijzonder budget van 0 uur en een overgangsbudget van 0 uur. "}]
["Bijzonder budget",null,{"$f":"ROUND(130*Startgegevens!$B$3,0)","v":0},"uur",null,null,null,null,null,null,null,null,null,{"$f":"\"Wanneer u een deel van dit budget in wilt zetten voor verlof, betaald u over het bijzonder budget en het overgangsbudget een eigen bijdrage. Het overgangsbudget kan enkel ingezet worden voor verlof. \"","v":"Wanneer u een deel van dit budget in wilt zetten voor verlof, betaald u over het bijzonder budget en het overgangsbudget een eigen bijdrage. Het overgangsbudget kan enkel ingezet worden voor verlof. "}]
["Overgangsbudget",null,{"$f":"ROUND(170*Startgegevens!$B$3,0)","v":0},"uur",null,null,null,null,null,null,null,null,null,{"$f":"\"Vult u in het eerste blauwe vak uw gewenst aantal uren verlof in. Dit moet liggen tussen de 0 en de \"&C9&\" uur. In het tweede blauwe vak moet u een keuze maken hoeveel uur van dit verlof u wilt putten uit het overgangsbudget. \"","v":"Vult u in het eerste blauwe vak uw gewenst aantal uren verlof in. Dit moet liggen tussen de 0 en de 0 uur. In het tweede blauwe vak moet u een keuze maken hoeveel uur van dit verlof u wilt putten uit het overgangsbudget. "}]
["Totaal budget",null,{"$f":"SUM(C6:C8)","v":0},"uur",null,null,null,null,null,null,null,null,null,{"$f":"\"Een laag gebruik van het overgangsbudget zorgt voor een lage eigen bijdrage en een laag restant aan uren voor duurzame inzetbaarheid. \"","v":"Een laag gebruik van het overgangsbudget zorgt voor een lage eigen bijdrage en een laag restant aan uren voor duurzame inzetbaarheid. "}]
["Gewenst aantal uur verlof",null,0,{"$f":"\"tussen 0 en \"&C9","v":"tussen 0 en 0"},null,null,null,null,null,null,null,null,null,{"$f":"\"Een hoog gebruik van het overgangsbudget zorgt voor een hoge eigen bijdrage, maar ook een hoog restant aan uren voor duurzame inzetbaarheid. \"","v":"Een hoog gebruik van het overgangsbudget zorgt voor een hoge eigen bijdrage, maar ook een hoog restant aan uren voor duurzame inzetbaarheid. "}]
["Waarvan overgangsbudget (eigen bijdrage)",null,0,{"$f":"IF(C10=\"\",\"\",(\"tussen \"&IF(C10>C8,C10-C8,0)&\" en \"&IF(C10<C8,C10,C8)))","v":"tussen 0 en 0"},null,null,null,null,null,null,null,null,null,{"$f":"\"Over de uren verlof die niet uit het overgangsbudget komen wordt een vaste verhouding geput uit het bijzonder budget dus betaald u over een vaste verhouding een eigen bijdrage. \"","v":"Over de uren verlof die niet uit het overgangsbudget komen wordt een vaste verhouding geput uit het bijzonder budget dus betaald u over een vaste verhouding een eigen bijdrage. "}]
[]
["Resultaat"]
["Aantal uur verlof zonder eigen bijdrage",null,{"$f":"IF(C10=\"\",\"\",IF(C11=\"\",\"\",(IF($C$10-$C$11>0,($C$10-$C$11)*(40/170),0))))","v":0},"uur"]
["Aantal uur verlof mét eigen bijdrage (bijzonder budget)",null,{"$f":"IF(C10=\"\",\"\",IF(C11=\"\",\"\",(IF($C$10-$C$11>0,($C$10-$C$11)*(130/170),0))))","v":0},"uur"]
["Aantal uur verlof mét eigen bijdrage (overgangsbudget)",null,{"$f":"IF(C10=\"\",\"\",IF(C11=\"\",\"\",(C11)))","v":0},"uur",null,{"$f":"C16+C15","v":0}]
["Beschikbaar voor duurzame inzetbaarheid",null,{"$f":"IF(C10=\"\",\"\",IF(C11=\"\",\"\",(C6-C14+C7-C15)))","v":0},"uur"]
[]
["Eigen bijdrage per maand",{"$f":"IF(C10=\"\",\"Vul gewenst aantal uur verlof in\",IF(C11=\"\",\"Vul gewenst aantal uren overgangsbudget in\",(((C16+C15)/1659)*Startgegevens!$B$3*(Startgegevens!$B$6+Startgegevens!$B$7))))","v":0},{"$f":"Startgegevens!C6","v":"Loonpeil 1 juli 2025"}]
[]
["Toelichting"]
[{"$f":"N6&N7&N8&N9&N10&N11","v":"U heeft jaarlijks recht op 0 uur aan duurzame inzetbaarheid. Dit is opgebouwd uit een basisbudget van 0 uur, een bijzonder budget van 0 uur en een overgangsbudget van 0 uur. Wanneer u een deel van dit budget in wilt zetten voor verlof, betaald u over het bijzonder budget en het overgangsbudget een eigen bijdrage. Het overgangsbudget kan enkel ingezet worden voor verlof. Vult u in het eerste blauwe vak uw gewenst aantal uren verlof in. Dit moet liggen tussen de 0 en de 0 uur. In het tweede blauwe vak moet u een keuze maken hoeveel uur van dit verlof u wilt putten uit het overgangsbudget. Een laag gebruik van het overgangsbudget zorgt voor een lage eigen bijdrage en een laag restant aan uren voor duurzame inzetbaarheid. Een hoog gebruik van het overgangsbudget zorgt voor een hoge eigen bijdrage, maar ook een hoog restant aan uren voor duurzame inzetbaarheid. Over de uren verlof die niet uit het overgangsbudget komen wordt een vaste verhouding geput uit het bijzonder budget dus betaald u over een vaste verhouding een eigen bijdrage. "}]
[]
["Ondertekening bevoegd gezag en aanvrager"]
[]
["Naam medewerker"]
["Geboortedatum"]
["Ingangsdatum voor salarisadministratie"]
[]
["Ondertekening medewerker",null,null,null,"Ondetekening bevoegd gezag"]
["Datum",null,null,null,"Datum"]
["Handtekening",null,null,null,"Handtekening"]

{"sheet":"Salaristabellen","index":4,"n_rows":124,"n_cols":38,"rows_kept":124,"cut":false,"hidden":true,"merged":[]}
["salaristabellen"]
["schaal / regel",null,1,2,3,4,5,6,7,8,9,10,11,12,13,14,15,16,17,18,19,20,21,22,23,24,25,"regels","categorie"]
["A10","50",3179,3498,3666,3852,4016,4179,4335,4489,4656,4804,4957,5106,5277,null,null,null,0,0,0,0,null,null,null,null,null,{"$f":"COUNTIF(C3:AA3,\">0\")","v":13},"DIR"]
["A11","50",3464,3649,3838,4028,4216,4426,4659,4912,5189,5487,5807,6149,null,null,null,null,0,0,0,0,null,null,null,null,null,{"$f":"COUNTIF(C4:AA4,\">0\")","v":12},"DIR"]
["A12","50",3497,3704,3943,4183,4423,4694,4995,5332,5697,6098,6528,6992,null,null,null,null,0,0,0,0,null,null,null,null,null,12,"DIR"]
["A13","50",5441,5630,5820,6009,6197,6388,6576,6765,6954,7143,7333,7521,7710,null,null,null,0,0,0,0,null,null,null,null,null,13,"DIR"]
["B1","50",3186,3334,3499,3675,3840,4005,4172,4438,4616,4794,4972,5151,5328,5506,5685,5862,0,0,0,0,null,null,null,null,null,16,"DIR"]
["B2","50",3334,3531,3759,3988,4216,4475,4762,5083,5431,5813,6223,6665,null,null,null,null,0,0,0,0,null,null,null,null,null,12,"DIR"]
["B3","50",5187,5343,5490,5641,5786,6089,6235,6383,6570,6759,6946,7134,7225,null,null,null,0,0,0,0,null,null,null,null,null,13,"DIR"]
["B4","50",5939,6089,6383,6570,6759,6946,7134,7324,7522,7726,7936,null,null,null,null,null,0,0,0,0,null,null,null,null,null,11,"DIR"]
["D11","50",3484,3649,3838,4028,4216,4426,4659,4912,5189,5487,5807,6149,5328,5506,5685,5862,0,0,0,0,null,null,null,null,null,16,"DIR"]
["D12","50",3497,3704,3943,4183,4423,4694,4995,5332,5697,6098,6528,6992,null,null,null,null,0,0,0,0,null,null,null,null,null,12,"BEST"]
["D13","50",5441,5630,5820,6009,6197,6388,6576,6765,6954,7143,7333,7521,7710,null,null,null,0,0,0,0,null,null,null,null,null,13,"OOP"]
["D14","50",6230,6387,6696,6892,7090,7286,7484,7683,7890,8105,8325,null,null,null,null,null,0,0,0,0,null,null,null,null,null,11,"OOP"]
["D15","50",6541,6696,6892,7286,7484,7683,7891,8105,8325,8588,8862,9141,null,null,null,null,0,0,0,0,null,null,null,null,null,12,"OOP"]
["LB","50",3463,3547,3653,3760,3868,4001,4157,4333,4534,4757,5004,5277,0,0,0,0,0,0,0,0,null,null,null,null,null,12,"OP"]
["LC","50",3484,3649,3838,4028,4216,4426,4659,4912,5189,5487,5807,6149,0,0,0,0,0,0,0,0,null,null,null,null,null,12,"OP"]
["LD","50",3498,3704,3944,4183,4423,4694,4995,5332,5698,6097,6528,6992,0,0,0,0,0,0,0,0,null,null,null,null,null,12,"OP"]
["LE","50",4489,4656,4804,5106,5441,5747,6051,6357,6662,6966,7271,7710,0,0,0,0,0,0,0,0,null,null,null,null,null,12,"OP"]
["LIOa","50",{"$f":"C16*0.5","v":1731.5},0,0,0,0,0,0,0,0,0,0,0,0,0,0,0,0,0,0,0,null,null,null,null,null,1,"OP"]
["LIOb","50",{"$f":"C17*0.5","v":1742},0,0,0,0,0,0,0,0,0,0,0,0,0,0,0,0,0,0,0,null,null,null,null,null,1,"OP"]
[1,"40",2505.6,2505.6,2505.6,2505.6,2518,2570,2623,0,0,0,0,0,0,0,0,0,0,0,0,0,null,null,null,null,null,7,"OOP-S"]
[10,"40",3179,3498,3666,3852,4016,4179,4335,4489,4656,4804,4957,5106,5277,null,null,null,0,0,0,0,null,null,null,null,null,13,"OOP-S"]
[11,"40",3484,3649,3838,4028,4216,4426,4659,4912,5189,5487,5807,6149,null,null,null,null,0,0,0,0,null,null,null,null,null,12,"OOP-S"]
[12,"40",3497,3704,3943,4183,4423,4694,4995,5332,5697,6098,6528,6992,null,null,null,null,0,0,0,0,null,null,null,null,null,12,"OOP-S"]
[13,"40",5441,5630,5820,6009,6197,6388,6576,6765,6954,7143,7333,7521,7710,null,null,null,0,0,0,0,null,null,null,null,null,13,"OOP"]
[14,"40",6230,6387,6696,6892,7090,7286,7484,7683,7890,8105,8325,null,null,null,null,null,0,0,0,0,null,null,null,null,null,11,"OOP"]
[15,"40",6541,6696,6892,7286,7484,7683,7891,8105,8325,8588,8862,9141,null,null,null,null,0,0,0,0,null,null,null,null,null,12,"OOP"]
[16,"40",7090,7286,7484,7891,8105,8325,8588,8862,9141,9434,9732,10041,null,null,null,null,0,0,0,0,null,null,null,null,null,12,"OOP"]
[2,"40",2505.6,2505.6,2505.6,2525,2584,2642,2700,2759,null,null,null,null,null,0,0,0,0,0,0,0,null,null,null,null,null,8,"OOP"]
[3,"40",2505.6,2505.6,2535,2609,2683,2757,2831,2905,2979,null,null,null,null,0,0,0,0,0,0,0,null,null,null,null,null,9,"OOP"]
[4,"40",2505.6,2505.6,2555,2627,2698,2769,2841,2912,2983,3055,3126,null,null,0,0,0,0,0,0,0,null,null,null,null,null,11,"OOP"]
[5,"40",2505.6,2521,2604,2686,2768,2851,2933,3015,3098,3180,3262,null,null,0,0,0,0,0,0,0,null,null,null,null,null,11,"OOP"]
[6,"40",2554,2644,2734,2823,2913,3003,3092,3182,3272,3362,3451,null,null,0,0,0,0,0,0,0,null,null,null,null,null,11,"OOP"]
[7,"40",2675,2774,2873,2972,3071,3170,3269,3368,3467,3566,3665,3764,null,0,0,0,0,0,0,0,null,null,null,null,null,12,"OOP"]
[8,"40",2889,3013,3137,3261,3385,3509,3633,3757,3881,4006,4130,4254,null,0,0,0,0,0,0,0,null,null,null,null,null,12,"OOP"]
[9,"40",3179,3342,3666,3852,4016,4179,4335,4489,4656,4804,0,0,0,0,0,0,0,0,0,0,null,null,null,null,null,10,"OOP"]
["Schoon-1","Schoonmaak",2390,2390,2414,2466,2518,270,2623,0,0,0,0,0,0,0,0,0,0,0,0,0,null,null,null,null,null,7,"OOP"]
["Schoon-2","Schoonmaak",2390,2408,2467,2525,2584,2642,2700,2759,null,null,null,null,0,0,0,0,0,0,0,0,null,null,null,null,null,8,"OOP"]
["Schoon-3","Schoonmaak",2390,2461,2535,2609,2683,2757,2831,2905,2979,null,null,null,0,0,0,0,0,0,0,0,null,null,null,null,null,9,"OOP"]
["Schoon-4","Schoonmaak",2413,2484,2555,2627,2698,2769,2841,2912,2983,3055,3126,null,0,0,0,0,0,0,0,0,null,null,null,null,null,11,"OOP"]
[]
["A10",1,2,3,4,5,6,7,8,9,10,11,12,13]
["A11",1,2,3,4,5,6,7,8,9,10,11,12,13,14,15,16]
["A12",1,2,3,4,5,6,7,8,9,10,11,12]
["A13",1,2,3,4,5,6,7,8,9,10,11,12,13]
["D11",1,2,3,4,5,6,7,8,9,10,11,12,13,14,15,16]
["D12",1,2,3,4,5,6,7,8,9,10,11,12]
["D13",1,2,3,4,5,6,7,8,9,10,11,12,13]
["D14",1,2,3,4,5,6,7,8,9,10,11]
["D15",1,2,3,4,5,6,7,8,9,10,11,12]
["B2",1,2,3,4,5,6,7,8,9,10]
["ID1",1,2,3,4,5,6,7]
["ID2",8,2,3,4,5,6,7,8]
["ID3",7,2,3,4,5,6,7,8,9]
[]
[]
[]
[]
[]
[]
[]
["A10","A11","A12","A13","D11","D12","D13","D14","D15","ID1","ID2","ID3","LB","LC","LD","LE","LIO1","Schoon-1","Schoon-2","Schoon-3","Schoon-4",1,2,3,4,5,6,7,8,9,10,11,12,13,14,15,16,"B2"]
[1,1,1,1,1,1,1,1,1,1,8,7,1,1,1,1,1,1,1,1,1,1,1,1,1,1,1,1,1,1,1,1,1,1,1,1,1,1]
[2,2,2,2,2,2,2,2,2,2,2,2,2,2,2,2,null,2,2,2,2,2,2,2,2,2,2,2,2,2,2,2,2,2,2,2,2,2]
[3,3,3,3,3,3,3,3,3,3,3,3,3,3,3,3,null,3,3,3,3,3,3,3,3,3,3,3,3,3,3,3,3,3,3,3,3,3]
[4,4,4,4,4,4,4,4,4,4,4,4,4,4,4,4,null,4,4,4,4,4,4,4,4,4,4,4,4,4,4,4,4,4,4,4,4,4]
[5,5,5,5,5,5,5,5,5,5,5,5,5,5,5,5,null,5,5,5,5,5,5,5,5,5,5,5,5,5,5,5,5,5,5,5,5,5]
[6,6,6,6,6,6,6,6,6,6,6,6,6,6,6,6,null,6,6,6,6,6,6,6,6,6,6,6,6,6,6,6,6,6,6,6,6,6]
[7,7,7,7,7,7,7,7,7,7,7,7,7,7,7,7,null,7,7,7,7,7,7,7,7,7,7,7,7,7,7,7,7,7,7,7,7,7]
[8,8,8,8,8,8,8,8,8,null,8,8,8,8,8,8,null,null,8,8,8,null,8,8,8,8,8,8,8,8,8,8,8,8,8,8,8,8]
[9,9,9,9,9,9,9,9,9,null,null,9,9,9,9,9,null,null,null,9,9,null,null,9,9,9,9,9,9,9,9,9,9,9,9,9,9,9]
[10,10,10,10,10,10,10,10,10,null,null,null,10,10,10,10,null,null,null,null,10,null,null,null,10,10,10,10,10,10,10,10,10,10,10,10,10,10]
[11,11,11,11,11,11,11,11,11,null,null,null,11,11,11,11,null,null,null,null,11,null,null,null,11,11,11,11,11,null,11,11,11,11,11,11,11]
[12,12,12,12,12,12,12,null,12,null,null,null,12,12,12,12,null,null,null,null,null,null,null,null,null,12,null,12,12,null,12,12,12,12,null,12,12]
[13,13,null,13,13,null,13,null,null,null,null,null,null,null,null,null,null,null,null,null,null,null,null,null,null,null,null,null,13,null,13,13,null,13]
[null,14,null,null,14,null,null,null,null,null,null,null,null,null,null,null,null,null,null,null,null,null,null,null,null,null,null,null,null,null,null,14]
[null,15,null,null,15,null,null,null,null,null,null,null,null,null,null,null,null,null,null,null,null,null,null,null,null,null,null,null,null,null,null,15]
[null,16,null,null,16,null,null,null,null,null,null,null,null,null,null,null,null,null,null,null,null,null,null,null,null,null,null,null,null,null,null,16]
[]
[]
[]
[]
[]
[]
[]
["A10"]
["A11"]
["A12"]
["A13"]
["D11"]
["D12"]
["D13"]
["D14"]
["D15"]
["ID1"]
["ID2"]
["ID3"]
["LB"]
["LC"]
["LD"]
["LE"]
["LIO1"]
["Schoon-1"]
["Schoon-2"]
["Schoon-3"]
["Schoon-4"]
[1]
[2]
[3]
[4]
[5]
[6]
[7]
[8]
[9]
[10]
[11]
[12]
[13]
[14]
[15]
[16]
["B2"]